[Event "Chess House GM-Tourney 2019"]
[Site "Aarhus"]
[Date "2019.02.16"]
[Round "8.3"]
[White "Olsen, Filip Boe"]
[Black "Grivas, Efstratios"]
[Result "1-0"]
[ECO "A80"]
[WhiteElo "2397"]
[BlackElo "2413"]
[Annotator "ChessBase"]
[PlyCount "147"]
[EventDate "2019.02.09"]
[EventType "tourn"]
[EventCountry "DEN"]
[SourceTitle "playchess.com"]
[Source "ChessBase"]
[SourceQuality "1"]
[TimeControl "40/5400+30:1800+30"]

1. d4 {[%emt 0:00:00]} f5 {[%emt 0:01:11]} 2. Nf3 {[%emt 0:00:00]} Nf6 {[%emt 0:00:22]} 3. g3 {[%emt 0:00:09]} g6 {[%emt 0:00:17]} 4. Bg2 {[%emt 0:00:08]} Bg7 {[%emt 0:00:08]} 5. O-O {[%emt 0:00:09]} O-O {[%emt 0:00:09]} 6. b3 {[%emt 0:00:07]} d6 {[%emt 0:01:41]} 7. Bb2 {[%emt 0:00:18]} Ne4 {[%emt 0:03:04]} 8. Nbd2 {[%emt 0:00:56]} Nc6 {[%emt 0:06:36]} 9. Ne1 {[%emt 0:01:39]} Nxd2 {[%emt 0:07:28]} 10. Qxd2 {[%emt 0:02:03]} Qe8 {[%emt 0:02:06]} 11. f4 {[%emt 0:15:23]} e5 {[%emt 0:04:17]} 12. fxe5 {[%emt 0:11:42]} dxe5 {[%emt 0:01:21]} 13. d5 {[%emt 0:00:29]} Nd8 {[%emt 0:05:57]} 14. c4 {[%emt 0:04:48]} Nf7 {[%emt 0:12:48]} 15. e4 {[%emt 0:06:38]} fxe4 {[%emt 0:11:07]} 16. Bxe4 {[%emt 0:03:17]} Bh6 {[%emt 0:03:50]} 17. Qe2 {[%emt 0:02:22]} Ng5 {[%emt 0:03:50]} 18. Bg2 {[%emt 0:04:47]} Nh3+ {[%emt 0:06:58]} 19. Kh1 {[%emt 0:07:15]} Bg4 {[%emt 0:00:35]} 20. Bf3 {[%emt 0:08:55]} Rxf3 {[%emt 0:20:25]} 21. Nxf3 {[%emt 0:01:34]} e4 {[%emt 0:00:02]} 22. Rae1 {[%emt 0:02:40]} Ng5 {[%emt 0:00:13]} 23. Qe3 {[%emt 0:10:40]} Bxf3+ {[%emt 0:00:32]} 24. Rxf3 {[%emt 0:00:07]} Nxf3 {[%emt 0:00:05]} 25. Qc3 {[%emt 0:04:07]} Qe5 {[%emt 0:05:39]} 26. Qxe5 {[%emt 0:00:19]} Nxe5 {[%emt 0:00:01]} 27. Bxe5 {[%emt 0:00:09]} Rc8 {[%emt 0:00:02]} 28. Kg2 {[%emt 0:00:27]} e3 {[%emt 0:00:02]} 29. Bf4 {[%emt 0:00:23]} Bxf4 {[%emt 0:01:06]} 30. gxf4 {[%emt 0:00:01]} c6 {[%emt 0:01:23]} 31. dxc6 {[%emt 0:05:21]} Rxc6 {[%emt 0:00:08]} 32. Rxe3 {[%emt 0:00:18]} Kf7 {[%emt 0:00:01]} 33. Kg3 {[%emt 0:01:37]} Rd6 {[%emt 0:00:28]} 34. Re5 {[%emt 0:01:17]} Rd3+ {[%emt 0:00:39]} 35. Kg4 {[%emt 0:00:31]} Rd2 {[%emt 0:00:51]} 36. Rb5 {[%emt 0:02:31]} b6 {[%emt 0:00:16]} 37. a4 {[%emt 0:00:12]} Rb2 {[%emt 0:01:02]} 38. h3 {[%emt 0:02:30]} Kf6 {[%emt 0:00:36]} 39. Kf3 {[%emt 0:02:19]} Ke6 {[%emt 0:00:41]} 40. Re5+ {[%emt 0:00:43]} Kf6 {[%emt 0:01:05]} 41. Rb5 {[%emt 0:30:56]} Ke6 {[%emt 0:30:13]} 42. Ke4 {[%emt 0:00:00]} Kd6 {[%emt 0:00:00]} 43. h4 {[%emt 0:00:00]} Kc6 {[%emt 0:00:00]} 44. a5 {[%emt 0:00:00]} Re2+ {[%emt 0:00:00]} 45. Kf3 {[%emt 0:00:00]} Rh2 {[%emt 0:00:00]} 46. Kg3 {[%emt 0:00:00]} Rh1 {[%emt 0:00:00]} 47. axb6 {[%emt 0:00:00]} axb6 {[%emt 0:00:00]} 48. f5 {[%emt 0:00:00]} Rb1 {[%emt 0:00:27]} 49. Kf4 {[%emt 0:00:00]} Rg1 {[%emt 0:02:50]} 50. fxg6 {[%emt 0:00:00]} Rxg6 {[%emt 0:00:07]} 51. Rg5 {[%emt 0:00:00]} Rd6 {[%emt 0:00:35]} 52. Rb5 {[%emt 0:01:10]} Rf6+ {[%emt 0:01:06]} 53. Kg5 {[%emt 0:00:22]} Rg6+ {[%emt 0:00:28]} 54. Kf4 {[%emt 0:00:33]} Rf6+ {[%emt 0:00:12]} 55. Kg4 {[%emt 0:00:29]} Rg6+ {[%emt 0:00:36]} 56. Rg5 {[%emt 0:00:14]} Re6 {[%emt 0:00:08]} 57. h5 {[%emt 0:00:54]} Re3 {[%emt 0:00:38]} 58. Rb5 {[%emt 0:00:10]} h6 {[%emt 0:00:49]} 59. Kf5 {[%emt 0:00:42]} Rg3 {[%emt 0:00:04]} 60. Kf6 {[%emt 0:00:10]} Kc7 {[%emt 0:01:21]} 61. Kf7 {[%emt 0:00:16]} Kc6 {[%emt 0:00:14]} 62. Ke7 {[%emt 0:00:37]} Rf3 {[%emt 0:00:24]} 63. Ke6 {[%emt 0:00:36]} Kc7 {[%emt 0:00:46]} 64. Kd5 {[%emt 0:00:33]} Rh3 {[%emt 0:00:28]} 65. Kd4 {[%emt 0:00:33]} Kc6 {[%emt 0:00:13]} 66. b4 {[%emt 0:01:45]} Rh4+ {[%emt 0:00:10]} 67. Kc3 {[%emt 0:00:08]} Rh3+ {[%emt 0:00:08]} 68. Kc2 {[%emt 0:00:08]} Rh2+ {[%emt 0:00:58]} 69. Kb3 {[%emt 0:00:06]} Rh3+ {[%emt 0:00:01]} 70. Ka4 {[%emt 0:00:10]} Rc3 {[%emt 0:01:35]} 71. Rf5 {[%emt 0:00:32]} Rxc4 {[%emt 0:00:04]} 72. Rf6+ {[%emt 0:00:12]} Kc7 73. Kb5 {[%emt 0:00:39]} Rg4 {[%emt 0:00:39]} 74. Rc6+ {[%emt 0:00:36]} 1-0

[Event "Chess House GM-Tourney 2019"]
[Site "Aarhus"]
[Date "2019.02.16"]
[Round "8.4"]
[White "Bach, Matthias"]
[Black "Fries-Nielsen, Jens Ove"]
[Result "1/2-1/2"]
[ECO "D37"]
[WhiteElo "2307"]
[BlackElo "2371"]
[Annotator "NA"]
[PlyCount "60"]
[EventDate "2019.02.09"]
[EventType "tourn"]
[EventCountry "DEN"]
[SourceTitle "playchess.com"]
[Source "ChessBase"]
[SourceQuality "1"]
[TimeControl "40/5400+30:1800+30"]

1. d4 {[%emt 0:00:00]} Nf6 {[%emt 0:03:12]} 2. c4 {[%emt 0:00:00]} e6 {[%emt 0:00:17]} 3. Nc3 {[%emt 0:01:54]} d5 {[%emt 0:03:25]} 4. Nf3 {[%emt 0:00:39]} Be7 {[%emt 0:00:04]} 5. g3 {[%emt 0:00:29]} O-O {[%emt 0:00:28]} 6. Bg2 {[%emt 0:00:32]} Na6 {[%emt 0:00:14]} 7. O-O {[%emt 0:01:42]} c6 {[%emt 0:00:34]} 8. a3 {[%emt 0:09:03]} b6 {[%emt 0:05:03]} 9. Ne5 {[%emt 0:00:32]} Bb7 {[%emt 0:00:22]} 10. e4 {[%emt 0:21:47]} dxc4 {[%emt 0:02:48]} 11. Nxc4 {[%emt 0:00:35]} b5 {[%emt 0:00:17]} 12. Ne3 {[%emt 0:01:38]} Qb6 {[%emt 0:01:42]} 13. e5 {[%emt 0:08:22]} Nd5 {[%emt 0:00:05]} 14. Ncxd5 {[%emt 0:01:42]} cxd5 {[%emt 0:00:02]} 15. b3 {[%emt 0:03:23]} Rac8 {[%emt 0:01:40]} 16. Bb2 {[%emt 0:00:18]} Nb8 {[%emt 0:00:35]} 17. Qg4 {[%emt 0:03:48]} Nc6 {[%emt 0:02:35]} 18. Rad1 {[%emt 0:00:24]} b4 {[%emt 0:02:03]} 19. a4 {[%emt 0:02:30]} Na5 {[%emt 0:01:45]} 20. f4 {[%emt 0:00:23]} f5 {[%emt 0:00:29]} 21. exf6 {[%emt 0:00:42]} Bxf6 {[%emt 0:00:02]} 22. f5 {[%emt 0:00:24]} exf5 {[%emt 0:35:00]} 23. Rxf5 {[%emt 0:04:15]} Qe6 {[%emt 0:01:35]} 24. Bxd5 {[%emt 0:26:19]} Bxd5 {[%emt 0:00:11]} 25. Nxd5 {[%emt 0:00:10]} Rcd8 {[%emt 0:25:15]} 26. Qf3 {[%emt 0:00:21]} Bg5 {[%emt 0:01:52]} 27. Rxf8+ {[%emt 0:04:29]} Rxf8 {[%emt 0:00:02]} 28. Nf4 {[%emt 0:03:24]} Bxf4 {[%emt 0:00:20]} 29. gxf4 {[%emt 0:00:12]} Qxb3 {[%emt 0:03:32]} 30. Qxb3+ {[%emt 0:00:10]} Nxb3 {[%emt 0:00:09]} 1/2-1/2